bitfinex/quotes_ETHUSD_20260208
["timestamp","ask_amount","ask_price","bid_price","bid_amount"]
[1770570087858,1.19846596,2086.0,2084.9,0.91801883]
[1770570088052,4.7936633,2086.1,2085.0,1.19904076]
[1770570089182,3.35,2086.2,2085.0,2.16106409]
[1770570089387,1.20010052,2086.7,2085.6,0.96202333]
[1770570089544,0.002,2086.7,2085.6,0.96202333]
[1770570089858,0.002,2086.7,2085.8,0.91701883]
[1770570090163,0.002,2086.7,2086.0,1.19846596]
[1770570090544,0.002,2086.7,2086.0,2.11548479]
[1770570090754,0.002,2086.7,2086.0,1.19846596]
[1770570090950,0.002,2086.7,2086.0,2.11548479]
[1770570092451,0.002,2086.7,2086.0,1.19846596]
[1770570094104,0.002,2086.7,2086.0,1.24347046]
[1770570094281,0.002,2086.7,2086.0,2.16048929]
[1770570094479,0.002,2086.7,2086.1,0.91701883]
[1770570094793,0.002,2086.7,2086.0,1.19846596]
[1770570095158,0.002,2086.5,2086.0,1.19846596]
[1770570095968,0.002,2086.7,2086.2,0.91701883]
[1770570096293,0.002,2086.7,2086.3,1.19829362]
[1770570096660,0.002,2086.7,2086.3,2.11531245]
[1770570097890,8.24110505,2087.9,2086.3,2.11531245]
[1770570098080,1.19760479,2087.7,2086.3,2.11531245]
[1770570099098,0.002,2087.8,2086.5,0.96202333]
[1770570099307,0.9155879,2087.7,2086.3,1.19829362]
[1770570100499,1.19754742,2087.6,2086.2,4.79317451]
[1770570100664,0.9155879,2087.5,2086.2,4.79317451]
[1770570101272,0.9155879,2087.5,2086.2,1.19835106]
[1770570101903,1.19754742,2087.6,2086.3,0.91701883]
[1770570103098,4.79218969,2087.8,2086.4,1.19823619]
[1770570103502,0.9155879,2087.7,2086.3,1.19825851]
[1770570105101,1.19754742,2087.6,2086.3,2.13552315]
[1770570105605,0.98232374,2087.5,2086.3,1.19825851]
[1770570106506,1.19754742,2087.6,2086.4,0.0450045]
[1770570106897,1.19754742,2087.6,2086.5,0.001]
[1770570107318,0.002,2087.4,2086.6,0.93726464]
[1770570108528,0.002,2087.4,2086.7,0.98226914]
[1770570109307,0.002,2087.4,2086.8,1.19800651]
[1770570109678,0.002,2087.4,2086.7,1.19801995]
[1770570111387,0.002,2087.4,2086.7,0.98226914]
[1770570113019,0.002,2087.4,2086.7,0.83226914]
[1770570114702,0.002,2087.4,2086.8,1.19800651]
[1770570115920,0.002,2087.4,2086.6,1.19808052]
[1770570116217,0.002,2087.4,2086.5,1.19915279]
[1770570116516,0.002,2087.4,2086.6,1.19811954]
[1770570116887,0.002,2087.4,2086.5,0.001]
[1770570118492,0.002,2087.4,2086.5,0.93826464]
[1770570118689,0.002,2087.4,2086.5,0.001]
[1770570118894,1.19966216,2087.4,2086.5,0.001]
[1770570119234,0.002,2087.4,2086.6,6.18000514]
[1770570119389,0.002,2087.4,2086.6,0.93726464]
[1770570120415,0.002,2087.4,2086.8,0.001]
[1770570120615,0.002,2087.2,2086.8,0.001]
[1770570121938,0.98432374,2087.2,2086.5,0.001]
[1770570122823,0.98432374,2087.2,2085.9,1.19852091]
[1770570122824,0.98232374,2086.7,2085.9,1.19852091]
[1770570123024,1.19812134,2086.6,2085.4,4.79622656]
[1770570123344,0.98232374,2086.5,2085.4,4.79622656]
[1770570123507,0.98232374,2086.5,2085.4,0.001]
[1770570124234,0.98232374,2086.2,2085.4,0.001]
[1770570125111,1.19840851,2086.1,2085.4,0.001]
[1770570125339,0.98232374,2086.0,2085.4,0.001]
[1770570125537,0.98232374,2086.9,2085.4,0.001]
[1770570125704,3.348,2087.3,2085.9,0.98226914]
[1770570125911,1.19978691,2087.2,2085.9,3.348]
[1770570126110,1.19978691,2087.2,2086.1,0.0450045]
[1770570126732,1.19978057,2087.2,2086.1,0.98226914]
[1770570127147,1.19978057,2087.2,2086.2,1.19835106]
[1770570128206,0.002,2087.2,2086.2,1.19835106]
[1770570128614,0.002,2087.2,2086.2,2.1356157]
[1770570129045,0.002,2087.2,2086.4,0.98226914]
[1770570129252,0.002,2087.2,2086.4,1.19820363]
[1770570129550,0.002,2087.2,2086.4,1.19822871]
[1770570129843,0.002,2087.2,2086.4,1.19823374]
[1770570132521,0.002,2087.2,2086.5,0.93726464]
[1770570133248,0.002,2087.2,2086.4,0.0460045]
[1770570133417,0.002,2087.0,2086.4,0.001]
[1770570134631,0.98432374,2087.0,2086.4,0.001]
[1770570136949,1.19794911,2086.9,2086.4,0.001]
[1770570137147,2.17768457,2086.9,2086.1,0.001]
[1770570137351,0.97973546,2086.8,2086.1,0.001]
[1770570139455,1.19806392,2086.7,2086.1,0.001]
[1770570140029,1.19794911,2086.9,2086.1,0.001]
[1770570140651,1.1999302,2087.0,2086.1,0.001]
[1770570140950,0.002,2087.0,2086.1,0.99842763]
[1770570141356,0.002,2087.0,2086.3,0.99742763]
[1770570141651,0.002,2087.0,2086.4,2.19566382]
[1770570143842,0.002,2087.0,2086.5,1.04243213]
[1770570145862,0.002,2087.0,2086.5,0.99742763]
[1770570146167,0.002,2087.0,2086.6,1.19812134]
[1770570146383,0.002,2087.0,2086.6,1.19912134]
[1770570146570,0.002,2086.8,2086.6,1.19912134]
[1770570148171,0.002,2087.0,2086.6,1.19912134]
[1770570148550,0.002,2087.0,2086.6,0.001]
[1770570152355,0.002,2087.0,2086.6,0.99842763]
[1770570153472,0.002,2087.2,2086.6,0.99842763]
[1770570153859,0.002,2087.2,2086.7,1.19806392]
[1770570154261,0.002,2087.2,2086.7,2.19549155]
[1770570154874,0.002,2087.2,2086.7,1.19806392]
[1770570157081,0.002,2087.2,2086.6,0.001]
[1770570157382,0.002,2087.2,2086.7,1.04243213]
[1770570158468,0.002,2087.2,2086.7,3.3930045]
[1770570158667,0.002,2087.2,2086.8,0.99742763]
[1770570159065,0.002,2087.0,2086.9,1.19794911]
[1770570159261,0.002,2087.2,2086.9,1.19794911]
[1770570159576,0.002,2087.2,2087.0,0.99742763]
[1770570159781,0.002,2087.4,2087.0,0.99742763]
[1770570160371,0.002,2087.4,2086.9,1.19794911]
[1770570161984,0.002,2087.4,2086.8,1.19800651]
[1770570166584,0.002,2087.4,2086.6,0.001]
[1770570166585,0.95690801,2087.2,2086.6,0.001]
[1770570169190,0.002,2087.4,2086.6,0.001]
[1770570169382,0.002,2087.4,2086.6,0.96044002]
[1770570170162,0.002,2087.4,2086.6,0.001]
[1770570170584,0.002,2087.4,2086.6,0.96044002]
[1770570171170,0.002,2087.4,2086.7,1.19806392]
[1770570171567,0.002,2087.4,2086.8,0.001]
[1770570171773,0.002,2087.0,2086.8,0.001]
[1770570172776,0.002,2087.0,2086.8,0.96044002]
[1770570172976,0.002,2087.4,2086.8,0.96044002]
[1770570173277,0.002,2087.4,2086.8,0.001]
[1770570173278,0.002,2087.3,2086.8,0.001]
[1770570173675,0.95890801,2087.3,2086.8,0.001]
[1770570173918,0.95690801,2087.3,2086.6,0.001]
[1770570174069,0.95790801,2087.2,2086.6,0.001]
[1770570174684,0.95690801,2087.1,2086.1,0.001]
[1770570174887,0.95690801,2086.9,2085.5,0.001]
[1770570175196,0.95690801,2086.7,2085.5,1.19975085]
[1770570175384,0.95690801,2086.5,2085.5,0.001]
[1770570177075,3.348,2086.5,2085.5,0.001]
[1770570177281,0.95690801,2086.4,2085.5,0.001]
[1770570177489,2.15518257,2086.4,2085.5,0.001]
[1770570178096,0.95690801,2086.3,2085.5,0.001]
[1770570179365,3.348,2086.5,2085.5,0.001]
[1770570179577,3.348,2086.5,2085.6,0.95944002]
[1770570180216,4.54618201,2086.5,2085.5,0.001]
[1770570180405,4.30490801,2086.5,2085.5,0.001]
[1770570180720,4.54618404,2086.5,2085.5,0.001]
[1770570180892,0.95890801,2087.4,2085.9,0.95944002]
[1770570181087,1.19763513,2087.5,2086.2,0.95944002]
[1770570181303,1.19955047,2087.6,2086.2,0.95944002]
[1770570181504,0.95890801,2087.6,2086.3,1.19829362]
[1770570182619,0.95890801,2087.6,2086.3,2.15773364]
[1770570183490,0.002,2087.6,2086.5,0.95944002]
[1770570184717,0.002,2087.6,2086.2,0.95944002]
[1770570185018,0.002,2087.6,2086.1,4.83817901]
[1770570185019,0.002,2087.6,2086.6,0.95944002]
[1770570185603,0.002,2087.6,2086.8,0.95944002]
[1770570186513,0.002,2087.4,2086.8,0.95944002]
[1770570187224,0.002,2087.6,2086.9,0.95944002]
[1770570187437,3.349,2088.3,2087.2,0.95944002]
[1770570187724,3.349,2088.3,2087.4,0.95944002]
[1770570188952,0.2804,2088.4,2087.4,0.95944002]
[1770570189825,0.2804,2088.4,2087.5,1.19760479]
[1770570190323,0.2804,2088.4,2087.6,0.95944002]
[1770570192030,0.2804,2088.4,2087.7,2.15693008]
[1770570192238,0.002,2088.5,2087.9,0.95944002]
[1770570192536,1.19660827,2089.3,2087.8,0.95944002]
[1770570193222,1.19660827,2089.3,2088.1,0.95944002]
[1770570193530,1.19649986,2089.5,2088.1,0.95944002]
[1770570193727,3.348,2089.7,2088.4,0.95944002]
[1770570193938,0.32364668,2089.8,2088.9,0.0450045]
[1770570194130,0.32364668,2089.8,2089.0,2.15618487]
[1770570194635,1.19609475,2090.2,2089.0,2.15618487]
[1770570194636,1.1960514,2090.3,2089.0,1.19674485]
[1770570194936,0.96805603,2091.0,2089.3,0.93384738]
[1770570195100,1.19603977,2090.3,2089.3,0.93384738]
[1770570195303,17.5617704,2090.0,2089.3,0.93384738]
[1770570195500,17.5617704,2090.0,2088.9,0.93384738]
[1770570195700,0.96805603,2089.9,2088.8,1.19685757]
[1770570195924,0.96805603,2089.9,2088.7,1.19686608]
[1770570196127,1.19628672,2089.8,2088.6,4.78775379]
[1770570196502,0.96805603,2089.7,2088.6,1.19697404]
[1770570196704,0.96805603,2089.7,2088.5,1.19700051]
[1770570197710,4.54328672,2089.8,2088.5,2.13084789]
[1770570197913,16.365566,2090.0,2089.1,0.93384738]
[1770570198107,16.365566,2090.0,2089.3,1.19657301]
[1770570198726,0.002,2089.8,2089.3,2.13042039]
[1770570199038,0.002,2089.8,2089.4,0.93384738]
[1770570200514,0.002,2089.8,2089.5,1.19645848]
[1770570201241,0.002,2089.8,2089.4,5.71975387]
[1770570201242,0.002,2089.8,2089.4,1.19648183]
[1770570201747,0.002,2089.8,2088.9,1.19679981]
[1770570201931,0.002,2089.8,2089.0,4.78682827]
[1770570202246,0.002,2089.8,2089.0,1.19670307]
[1770570202544,0.002,2089.8,2089.4,1.19651311]
[1770570202847,0.002,2089.8,2089.2,1.19663028]
[1770570203338,0.002,2089.8,2089.0,1.19670696]
[1770570204544,0.002,2089.8,2089.1,1.19668505]
[1770570204842,0.002,2089.8,2088.7,0.0450045]
[1770570204843,0.002,2089.8,2088.8,2.13070682]
[1770570205248,0.002,2089.8,2088.9,0.93384738]
[1770570205916,0.002,2089.8,2088.8,1.19685944]
[1770570206120,0.97005603,2089.8,2088.7,1.19690614]
[1770570206318,0.97005603,2089.8,2088.6,1.19696791]
[1770570206523,0.97005603,2089.8,2088.6,1.19696678]
[1770570206823,0.96805603,2089.6,2088.2,1.19720333]
[1770570207024,3.345,2089.5,2088.2,2.13105071]
[1770570208126,3.345,2089.5,2088.3,0.93384738]
[1770570208319,3.345,2089.5,2088.5,0.93384738]
[1770570208847,1.19651574,2089.4,2088.2,1.19720333]
[1770570209621,4.54149467,2089.5,2088.3,0.93384738]
[1770570209844,3.345,2089.5,2088.3,0.93384738]
[1770570210345,3.345,2089.5,2088.5,0.97885188]
[1770570210551,4.54146705,2089.5,2088.5,0.97885188]
[1770570211147,0.96805603,2089.4,2088.4,1.19705399]
[1770570211321,0.96805603,2089.4,2088.2,1.19719851]
[1770570211745,0.96805603,2089.4,2088.5,0.001]
[1770570213452,0.96805603,2089.2,2088.5,0.001]
[1770570213753,0.96805603,2089.2,2087.7,1.19745288]
[1770570214057,0.96805603,2089.2,2087.9,1.19736687]
[1770570214353,0.96805603,2089.2,2087.7,1.19744992]
[1770570214554,0.96805603,2089.2,2087.8,1.19742254]
[1770570214749,0.96805603,2089.2,2087.6,2.13235339]
[1770570214949,0.96805603,2089.2,2087.7,1.19748821]
[1770570215253,1.07045603,2089.2,2087.9,1.19736424]
[1770570215432,2.16474359,2089.1,2087.8,1.19739062]
[1770570215949,0.96805603,2089.0,2087.6,0.001]
[1770570216154,3.345,2088.9,2087.7,1.19748582]
[1770570216458,3.345,2088.9,2087.8,0.93384738]
[1770570216952,3.345,2088.9,2087.8,0.97885188]
[1770570217344,1.19666548,2089.2,2088.0,0.93384738]
[1770570217647,1.19657301,2089.3,2088.2,0.93384738]
[1770570218059,4.54155401,2089.4,2088.2,0.93384738]
[1770570218641,3.345,2089.4,2088.3,6.569569]
[1770570218846,3.345,2089.4,2088.4,0.93384738]
[1770570219246,4.54151748,2089.4,2088.4,0.93384738]
[1770570219442,3.345,2089.4,2088.5,2.878]
[1770570219650,4.54151622,2089.4,2088.6,1.19697404]
[1770570220170,1.19637248,2089.7,2088.7,0.93384738]
[1770570220396,1.198326,2089.8,2088.7,0.93384738]
[1770570221271,0.002,2089.8,2088.7,0.93384738]
[1770570221451,1.1982943,2089.8,2088.7,0.93384738]
[1770570221645,1.1982943,2089.8,2088.8,2.13070682]
[1770570222162,1.1982943,2089.8,2088.9,0.93384738]
[1770570222577,0.002,2089.8,2088.9,0.93384738]
[1770570224367,0.97005603,2089.8,2088.7,1.19689987]
[1770570224546,0.97005603,2089.8,2088.6,1.19694116]
[1770570224865,0.97005603,2089.8,2088.7,1.19687617]
[1770570225067,0.002,2089.6,2088.6,1.19696217]
[1770570225281,0.97241464,2089.6,2088.6,1.19696217]
[1770570225480,0.97241464,2089.6,2088.5,1.1969989]
[1770570225678,0.002,2089.6,2088.7,1.196889]
[1770570225854,0.002,2089.6,2088.6,1.19693547]
[1770570226052,0.97241464,2089.6,2088.6,1.19693547]
[1770570226373,1.19645848,2089.5,2088.2,1.19720333]
[1770570226755,1.14645848,2089.5,2088.2,1.19720333]
[1770570227155,1.14645848,2089.5,2088.2,2.17403542]
[1770570227357,0.97041464,2089.4,2088.1,1.19821995]
[1770570227557,3.345,2089.3,2088.1,1.19821995]
[1770570227787,4.31541464,2089.3,2088.1,1.19821995]
[1770570227961,4.31541464,2089.3,2088.1,0.001]
[1770570227962,0.97041464,2089.2,2088.1,0.001]
[1770570228290,1.01541914,2089.2,2088.1,1.19825594]
[1770570228468,1.19668756,2089.1,2088.1,0.001]
[1770570228975,1.19668756,2089.1,2088.1,0.97783209]
[1770570229582,4.54161483,2089.3,2088.1,1.02283659]
[1770570230675,4.54161483,2089.3,2088.3,0.97683209]
[1770570232686,4.54161483,2089.3,2088.1,0.001]
[1770570233089,5.51202947,2089.3,2088.1,0.001]
[1770570234800,0.97041464,2089.2,2088.1,0.001]
[1770570235305,4.54161483,2089.3,2088.1,0.97783209]
[1770570237067,4.54161483,2089.3,2088.2,1.19720333]
[1770570237700,4.54161483,2089.3,2088.3,0.97683209]
[1770570238386,4.54161483,2089.3,2088.3,0.97783209]
[1770570238595,4.54361483,2089.3,2088.3,0.97783209]
[1770570238980,4.54361483,2089.3,2088.3,0.001]
[1770570240895,0.002,2089.3,2088.3,0.97783209]
[1770570241078,0.002,2089.6,2088.8,0.97683209]
[1770570243374,0.002,2089.6,2088.9,1.19680214]
[1770570243779,0.002,2089.6,2088.9,2.17363423]
[1770570244198,3.345,2089.5,2088.7,1.1969148]
[1770570244410,0.002,2089.6,2088.9,0.97683209]
[1770570244594,16.365566,2090.0,2089.4,0.97683209]
[1770570244796,17.56176821,2090.0,2089.1,0.97683209]
[1770570244994,17.56176821,2090.0,2089.1,0.0450045]
[1770570245497,17.56176821,2090.0,2089.1,1.24169]
[1770570246177,17.56176821,2090.0,2089.1,2.21852209]
[1770570246684,17.56174517,2090.0,2089.2,0.97683209]
[1770570247501,17.56174517,2090.0,2089.2,2.17340571]
[1770570248987,17.56174517,2090.0,2089.2,1.1966129]
[1770570250108,17.56174517,2090.0,2089.0,2.17357694]
[1770570250404,17.56174829,2090.0,2089.1,1.02183659]
[1770570250602,17.56174829,2090.0,2089.1,0.97683209]
[1770570251518,17.56174829,2090.0,2089.4,0.001]
[1770570251811,0.002,2089.8,2089.4,0.001]
[1770570253076,1.19594368,2090.4,2089.6,0.97683209]
[1770570253707,4.53988812,2090.5,2089.6,0.97683209]
[1770570254707,4.53988812,2090.5,2089.7,1.19634397]
[1770570255305,4.53988812,2090.5,2089.5,1.19643184]
[1770570255504,4.53988812,2090.5,2089.6,1.19639772]
[1770570256017,4.53988812,2090.5,2089.6,2.12880996]
[1770570257721,4.53988812,2090.5,2089.5,1.19641738]
[1770570257905,4.53988812,2090.5,2089.6,1.19639839]
[1770570260006,1.19588812,2090.5,2089.5,0.93241224]
[1770570260803,1.51954505,2090.6,2089.5,0.97741674]
[1770570261730,0.3236757,2090.6,2089.5,0.97741674]
[1770570261926,1.51950744,2090.6,2089.5,0.97741674]
[1770570262133,1.51951619,2090.6,2089.7,0.93241224]
[1770570263501,1.19531436,2091.5,2090.3,0.93241224]
[1770570263706,1.20718488,2091.6,2090.3,0.93241224]
[1770570263916,1.20718488,2091.6,2090.4,0.97741674]
[1770570264119,0.95257443,2091.6,2090.5,1.19588615]
[1770570264309,2.14783905,2091.6,2090.5,1.19588615]
[1770570265427,0.002,2090.6,2090.5,1.19588615]
[1770570265811,0.002,2090.6,2090.2,1.19605503]
[1770570266137,0.002,2090.6,2090.2,1.19605295]
[1770570266435,0.002,2090.6,2090.0,1.19617224]
[1770570266613,0.002,2090.6,2090.1,0.0450045]
[1770570268235,0.002,2090.6,2090.1,0.97741674]
[1770570268435,0.002,2090.6,2090.2,1.19605779]
[1770570269320,3.343,2091.3,2090.2,1.19605779]
[1770570269541,3.343,2091.4,2090.2,2.12847003]
[1770570269910,2.13603085,2091.5,2090.2,2.12847003]
[1770570270232,0.01189497,2091.6,2090.5,0.0450045]
[1770570270418,1.20715719,2091.6,2090.6,1.19582894]
[1770570270731,0.01189497,2091.6,2090.6,1.19582894]
[1770570270902,0.94067946,2091.5,2090.6,1.19582894]
[1770570271107,0.94067946,2091.5,2090.2,4.78408949]
[1770570271307,0.94067946,2091.5,2090.3,1.19596079]
[1770570271811,0.94067946,2091.3,2090.0,1.19616269]
[1770570272113,0.94067946,2091.3,2090.2,1.19605219]
[1770570272326,3.343,2091.2,2090.1,1.19606886]
[1770570272928,2.13599382,2091.5,2090.1,0.97741674]
[1770570273109,3.343,2091.4,2090.1,0.97741674]
[1770570273309,2.13599382,2091.5,2090.1,0.97741674]
[1770570274546,4.28367946,2091.4,2090.1,0.97741674]
[1770570274906,2.13610814,2091.3,2090.1,1.19606374]
[1770570276617,2.13610814,2091.3,2090.1,2.17348048]
[1770570276831,0.94067946,2091.3,2090.1,2.17348048]
[1770570277036,5.47912042,2091.3,2090.1,2.17348048]
[1770570277325,4.53844096,2091.3,2090.2,0.93241224]
[1770570278017,0.94067946,2091.2,2090.0,3.343]
[1770570278215,0.94067946,2091.2,2089.9,0.001]
[1770570279034,0.94067946,2091.0,2089.9,0.001]
[1770570280129,1.19554301,2091.1,2089.9,0.93341224]
[1770570280336,0.002,2091.3,2090.1,0.97741674]
[1770570280546,0.002,2091.3,2090.4,0.0450045]
[1770570280845,0.002,2091.3,2090.2,0.97741674]
[1770570281047,0.002,2091.3,2090.4,0.93241224]
[1770570281420,0.002,2091.3,2090.5,0.97741674]
[1770570281616,0.002,2091.3,2090.5,0.0450045]
[1770570282747,0.002,2091.3,2090.5,0.97741674]
[1770570283049,0.002,2091.3,2090.5,1.19584289]
[1770570283250,0.002,2091.3,2090.5,2.12825513]
[1770570283818,0.002,2091.3,2090.6,0.93241224]
[1770570284519,0.1414464,2091.8,2091.1,0.0450045]
[1770570284715,0.1414464,2091.8,2090.9,0.93241224]
[1770570285154,0.1414464,2091.8,2091.0,1.19560019]
[1770570285317,0.1414464,2091.8,2091.0,2.145325]
[1770570287438,0.1414464,2091.8,2091.1,0.94972481]
[1770570287949,0.32298954,2092.2,2091.4,0.99472931]
[1770570288150,1.19492069,2092.2,2091.2,3.342]
[1770570288352,0.94460402,2093.2,2091.3,0.99472931]
[1770570288555,0.00948765,2093.4,2092.4,0.94972481]
[1770570288853,0.0450045,2093.0,2091.1,0.94972481]
[1770570289071,0.0450045,2092.0,2090.4,0.94972481]
[1770570289221,1.19510774,2091.9,2090.6,0.94972481]
[1770570289425,4.77895619,2092.6,2090.6,0.94972481]
[1770570289426,4.77874414,2092.8,2090.7,0.2335703]
[1770570289622,0.0450045,2092.6,2090.8,0.94972481]
[1770570289830,0.0450045,2092.3,2090.9,4.29172481]
[1770570290056,0.0450045,2092.0,2090.9,3.342]
[1770570290224,0.94460402,2091.9,2090.9,5.0]
[1770570290431,0.98960852,2091.7,2090.9,5.0]
[1770570290646,3.4444,2091.9,2090.9,5.0]
[1770570290849,0.98960852,2091.7,2090.9,5.0]
[1770570291246,1.24026171,2091.6,2090.9,5.0]
[1770570291455,1.19525721,2091.6,2090.9,5.0]
[1770570292150,4.78102887,2091.7,2090.9,5.0]
[1770570292151,0.002,2091.5,2090.9,6.19562827]
[1770570293136,0.002,2091.5,2090.9,7.14535308]
[1770570294150,0.002,2091.5,2090.9,6.19562827]
[1770570298448,0.0450045,2092.4,2091.1,0.94972481]
[1770570298750,0.0450045,2092.4,2090.9,6.19562827]
[1770570298751,0.0450045,2091.8,2090.9,6.19562827]
[1770570298974,3.22660852,2092.1,2090.9,6.19564929]
[1770570299150,0.0450045,2092.0,2090.9,6.19564608]
[1770570299559,0.98960852,2091.9,2090.9,5.0]
[1770570299760,0.94460402,2091.9,2090.9,5.0]
[1770570300280,2.13980409,2091.7,2090.9,5.0]
[1770570300483,1.1951789,2091.8,2090.9,6.19564847]
[1770570300645,1.29737155,2092.1,2090.9,6.19564847]
[1770570300851,1.19497155,2092.1,2090.9,7.14537328]
[1770570301076,0.94460402,2092.0,2090.9,6.19562567]
[1770570301279,1.23997605,2092.1,2090.9,6.19562567]
[1770570301450,1.19474313,2092.5,2091.1,0.94972481]
[1770570301778,0.98960852,2092.4,2091.1,0.94972481]
[1770570302347,1.19485733,2092.3,2091.2,1.19548584]
[1770570302750,0.94460402,2092.2,2091.0,3.341]
[1770570302971,0.98960852,2092.1,2091.0,1.19559537]
[1770570303166,0.98960852,2092.1,2090.8,1.19568955]
[1770570303390,0.98960852,2091.8,2090.6,4.53678055]
[1770570303748,0.98960852,2091.8,2090.6,3.341]
[1770570303949,0.98960852,2091.8,2090.5,1.1958852]
[1770570304473,1.19537152,2091.4,2090.5,1.1958852]
[1770570305175,1.19537152,2091.4,2090.4,2.14662468]
[1770570305377,1.19537152,2091.4,2090.7,0.001]
[1770570305894,1.24037602,2091.4,2090.7,0.001]
[1770570306275,1.19537152,2091.4,2090.7,0.001]
[1770570306589,1.24037602,2091.4,2090.7,0.001]
[1770570306983,1.19537152,2091.4,2090.7,0.001]
[1770570307657,1.19533538,2091.5,2090.7,0.001]
[1770570308562,4.78325747,2091.6,2090.7,0.001]
[1770570311974,0.0450045,2091.5,2090.7,0.001]
[1770570312295,4.78325747,2091.6,2090.7,0.001]
[1770570312587,5.72786149,2091.6,2090.7,0.001]
[1770570312888,0.002,2091.6,2090.9,0.94972481]
[1770570313184,1.19491511,2092.2,2091.0,0.94972481]
[1770570313497,0.002,2092.2,2091.0,0.94972481]
[1770570314091,0.002,2092.2,2091.2,0.94972481]
[1770570314290,1.19466764,2092.7,2091.2,0.94972481]
[1770570314462,0.002,2092.7,2091.3,0.2335703]
[1770570314663,0.002,2092.7,2091.6,0.94972481]
[1770570314962,4.82153408,2093.6,2092.0,0.97105773]
[1770570314963,4.53611539,2093.6,2092.0,0.97105773]
[1770570315169,0.002,2093.5,2092.0,0.97105773]
[1770570315360,0.002,2093.5,2092.2,0.97105773]
[1770570315998,0.002,2093.5,2092.0,0.97105773]
[1770570315999,0.91691505,2093.4,2092.0,0.97105773]
[1770570316168,0.6,2093.3,2092.0,0.97105773]
[1770570316568,0.002,2093.2,2092.0,0.97105773]
[1770570317005,0.002,2093.2,2092.2,0.97105773]
[1770570318183,0.002,2093.1,2092.2,0.97105773]
[1770570318386,0.002,2093.3,2092.2,0.97105773]
[1770570318773,0.002,2093.2,2092.2,0.97105773]
[1770570319296,0.002,2093.2,2092.4,0.97105773]
[1770570319603,0.002,2093.3,2092.5,0.97105773]
[1770570319779,0.004,2093.3,2092.5,0.97105773]
[1770570320095,0.32253356,2093.8,2092.6,0.97105773]
[1770570320308,0.002,2093.7,2092.6,0.97105773]
[1770570320602,0.002,2093.9,2092.6,0.97105773]
[1770570321186,0.002,2093.9,2092.8,0.97105773]
[1770570321498,5.69061385,2094.9,2093.2,0.97105773]
[1770570321803,0.0450045,2094.7,2093.4,0.97105773]
[1770570322002,5.69261385,2094.9,2093.4,0.97105773]
[1770570322295,0.0450045,2094.4,2093.3,3.34]
[1770570322606,0.96191955,2094.4,2093.3,3.34]
[1770570322773,0.002,2094.3,2093.3,3.34]
[1770570323305,1.19571627,2094.3,2093.3,4.53427087]
[1770570323798,1.19571627,2094.3,2093.3,3.34]
[1770570324120,1.19571627,2094.3,2093.3,4.53428115]
[1770570324307,2.15763582,2094.3,2092.7,0.97105773]
[1770570324507,0.0450045,2094.2,2093.0,1.19440498]
[1770570324806,0.002,2094.3,2093.5,0.97105773]
[1770570325207,0.1024,2095.1,2093.7,0.97105773]
[1770570325519,0.91691505,2095.7,2093.7,0.97105773]
[1770570325520,1.19324656,2095.2,2093.8,0.97105773]
[1770570326212,0.32342042,2095.3,2094.0,1.01606223]
[1770570326375,0.32342042,2095.3,2093.6,0.97105773]
[1770570326376,0.96191955,2095.2,2093.6,0.97105773]
[1770570326576,0.96191955,2095.2,2093.6,2.16516989]
[1770570326987,0.96191955,2095.2,2093.7,0.97105773]
[1770570327389,1.19326046,2095.1,2093.8,1.19400133]
[1770570327707,0.6,2095.0,2093.8,1.19400133]
[1770570328310,1.19326046,2095.1,2093.9,0.97105773]
[1770570329230,2.11017551,2095.1,2093.7,1.19401765]
[1770570329518,2.11017551,2095.1,2093.6,1.19411539]
[1770570329818,2.11017551,2095.1,2093.5,2.16518729]
[1770570329992,0.0450045,2094.9,2093.5,2.16518729]
[1770570330584,0.96191955,2094.6,2093.3,3.339]
[1770570330808,0.96191955,2094.6,2092.5,0.97105773]
[1770570330809,0.96191955,2094.3,2092.5,0.97105773]
[1770570330981,0.96191955,2094.3,2092.5,5.75002064]
[1770570330982,0.96191955,2094.0,2092.5,5.75002064]
[1770570331299,0.96191955,2093.7,2092.4,1.19476957]
[1770570331511,0.96191955,2093.7,2092.2,4.7794975]
[1770570331512,1.19411539,2093.6,2092.2,4.7794975]
[1770570331698,1.19411539,2093.6,2093.5,0.001]
[1770570331897,1.19411539,2093.6,2092.2,4.7794975]
[1770570332216,1.19411539,2093.6,2093.3,0.001]
[1770570332415,1.19411539,2093.6,2092.1,5.50398826]
[1770570332910,0.6,2093.4,2092.2,0.97105773]
[1770570333611,1.79424635,2093.4,2092.3,0.97105773]
[1770570335606,1.79424635,2093.4,2092.4,1.19480022]
[1770570338019,1.79424635,2093.4,2092.4,2.16585795]
[1770570338218,0.6,2093.4,2092.4,2.16585795]
[1770570338398,1.79423385,2093.4,2092.5,0.97105773]
[1770570338921,0.6,2093.4,2092.5,0.97105773]
[1770570339296,1.79423169,2093.4,2092.2,1.1948588]
[1770570339888,0.91691505,2093.3,2092.1,4.53292888]
[1770570340516,1.79423169,2093.4,2092.1,4.53292888]
[1770570341314,1.79423169,2093.4,2092.2,0.97105773]
[1770570341519,1.79423169,2093.4,2092.3,1.19485733]
[1770570342501,1.79423169,2093.4,2092.3,2.16591506]
[1770570343590,1.79423169,2093.4,2092.4,0.97105773]
[1770570344501,1.79424862,2093.4,2092.4,0.97105773]
[1770570344830,0.6,2093.4,2092.5,0.91269466]
[1770570344995,1.79423065,2093.4,2092.5,0.91269466]
[1770570345197,0.6,2093.4,2092.5,0.91269466]
[1770570345515,1.79423438,2093.4,2092.5,0.91269466]
[1770570345723,0.6,2093.4,2092.6,1.19468603]
[1770570345921,1.79423229,2093.4,2092.6,1.19468603]
[1770570346635,1.79423229,2093.4,2092.5,0.001]
[1770570346824,0.96592879,2093.3,2092.5,0.001]
[1770570348098,1.19434358,2093.2,2092.5,0.001]
[1770570349099,1.19433144,2093.3,2092.5,0.001]
[1770570350414,4.77489095,2094.3,2092.6,0.95669916]
[1770570350603,5.37709029,2093.9,2092.8,0.91169466]
[1770570350804,0.1024,2094.4,2092.8,0.91169466]
[1770570351010,5.47949029,2094.4,2092.8,0.91169466]
[1770570351206,0.96592879,2094.3,2092.8,0.91169466]